fUST/lending_fUST_20240429
["ID","MTS","AMOUNT","RATE_DAILY","PERIOD"]
[324858783,1714377039037,-59.50493761,0.0001452,2]
[324858785,1714377039046,-469.8890314,0.0001452,2]
[324858787,1714377039056,-500.0,0.0001452,2]
[324858789,1714377039066,-478.17379504,0.0001452,2]
[324858894,1714377040306,-21.82620496,0.0001452,2]
[324858896,1714377040316,-636.83,0.0001452,2]
[324858898,1714377040325,-500.0,0.0001452,2]
[324858900,1714377040334,-500.0,0.0001452,2]
[324858902,1714377040343,-500.0,0.0001452,2]
[324858904,1714377040353,-500.0,0.0001452,2]
[324858906,1714377040362,-523.93,0.0001452,2]
[324858908,1714377040371,-500.0,0.0001452,2]
[324858910,1714377040381,-500.0,0.0001452,2]
[324858912,1714377040391,-500.0,0.0001452,2]
[324858914,1714377040399,-500.0,0.0001452,2]
[324858916,1714377040409,-500.0,0.0001452,2]
[324858918,1714377040427,-500.0,0.0001452,2]
[324858920,1714377040438,-500.0,0.0001452,2]
[324858922,1714377040448,-1255.33,0.0001452,2]
[324858924,1714377040458,-500.0,0.00014794,2]
[324858926,1714377040467,-291.16030117,0.00014794,2]
[324858928,1714377040477,-176.59855279,0.00014794,2]
[324858930,1714377040486,-500.0,0.00014794,2]
[324858932,1714377040495,-500.0,0.00014794,2]
[324858934,1714377040504,-163.11981516,0.00014794,2]
[324858936,1714377040513,-423.71695071,0.00014794,2]
[324858938,1714377040524,-465.2405021,0.00014794,2]
[324858940,1714377040533,-500.0,0.00014794,2]
[324858942,1714377040542,-450.549118,0.00014794,2]
[324858944,1714377040551,-500.0,0.00014794,2]
[324858946,1714377040560,-500.0,0.00014794,2]
[324858948,1714377040570,-500.0,0.00014794,2]
[324858950,1714377040579,-500.0,0.00014794,2]
[324858952,1714377040589,-375.35798207,0.00014794,2]
[324858954,1714377040599,-500.0,0.00014794,2]
[324858956,1714377040608,-500.0,0.00014794,2]
[324858958,1714377040617,-500.0,0.00014794,2]
[324858960,1714377040627,-636.83,0.00014794,2]
[324858962,1714377040636,-393.43212284,0.00014794,2]
[324858964,1714377040645,-500.0,0.00014794,2]
[324858966,1714377040655,-500.0,0.00014794,2]
[324858968,1714377040668,-500.0,0.00014794,2]
[324858970,1714377040683,-523.93,0.00014794,2]
[324858972,1714377040693,-536.99476611,0.00014794,2]
[324858974,1714377040701,-500.0,0.00014794,2]
[324858976,1714377040711,-237.13607076,0.00014794,2]
[324858978,1714377040720,-500.0,0.00014794,2]
[324858980,1714377040729,-500.0,0.00014794,2]
[324858981,1714377040739,-500.0,0.00014794,2]
[324858983,1714377040748,-500.0,0.00014794,2]
[324858985,1714377040757,-1255.33,0.00014794,2]
[324858988,1714377040767,-1677.62779446,0.00015,2]
[324858990,1714377040778,-2780.07634031,0.00015,2]
[324858992,1714377040787,-1009.67688923,0.00015,2]
[324858993,1714377040796,-939.34960788,0.00015,2]
[324858995,1714377040805,-600.55745117,0.00015,2]
[324858997,1714377040815,-2101.14247839,0.00015,2]
[324858999,1714377040824,-154.78330338,0.00015,2]
[324859001,1714377040833,-154.78330338,0.00015,2]
[324859004,1714377040844,-420.0,0.00015067,2]
[324859005,1714377040853,-500.0,0.00015068,2]
[324859008,1714377040862,-179.49309751,0.00015068,2]
[324859009,1714377040872,-500.0,0.00015068,2]
[324859011,1714377040881,-500.0,0.00015068,2]
[324859013,1714377040890,-500.0,0.00015068,2]
[324859015,1714377040899,-516.68461594,0.00015068,2]
[324859018,1714377040908,-500.0,0.00015068,2]
[324859019,1714377040925,-263.11980427,0.00015068,2]
[324859021,1714377040934,-186.11306798,0.00015068,2]
[324859023,1714377040943,-500.0,0.00015068,2]
[324859025,1714377040952,-500.0,0.00015068,2]
[324859027,1714377040961,-636.83,0.00015068,2]
[324859029,1714377040971,-500.0,0.00015068,2]
[324859031,1714377040980,-399.50671533,0.00015068,2]
[324859033,1714377040989,-500.0,0.00015068,2]
[324859036,1714377040998,-523.93,0.00015068,2]
[324859037,1714377041007,-500.0,0.00015068,2]
[324859039,1714377041017,-500.0,0.00015068,2]
[324859041,1714377041026,-500.0,0.00015068,2]
[324859044,1714377041036,-500.0,0.00015068,2]
[324859046,1714377041046,-500.0,0.00015068,2]
[324859048,1714377041055,-1255.33,0.00015068,2]
[324859050,1714377041064,-203.7672836,0.00015068,2]
[324859052,1714377041073,-403.57323851,0.00015342,2]
[324859053,1714377041083,-352.48792707,0.00015342,2]
[324859055,1714377041091,-500.0,0.00015342,2]
[324859057,1714377041101,-500.0,0.00015342,2]
[324859060,1714377041110,-500.0,0.00015342,2]
[324859061,1714377041119,-137.36404202,0.00015342,2]
[324859064,1714377041131,-362.63595798,0.00015342,2]
[324859066,1714377041140,-255.19226637,0.00015342,2]
[324859068,1714377041149,-508.14949833,0.00015342,2]
[324859346,1714377043292,-128.68050167,0.00015342,2]
[324859348,1714377043301,-500.0,0.00015342,2]
[324859350,1714377043310,-500.0,0.00015342,2]
[324859352,1714377043320,-523.93,0.00015342,2]
[324859354,1714377043329,-185.13683929,0.00015342,2]
[324859355,1714377043339,-500.0,0.00015342,2]
[324859357,1714377043348,-500.0,0.00015342,2]
[324859358,1714377043358,-500.0,0.00015342,2]
[324859359,1714377043367,-500.0,0.00015342,2]
[324859360,1714377043376,-1255.33,0.00015342,2]
[324859361,1714377043386,-500.0,0.00015616,2]
[324859362,1714377043395,-511.363832,0.00015616,2]
[324859363,1714377043404,-137.0127462,0.00015616,2]
[324859468,1714377134832,154.78330338,9.999e-05,2]
[324859469,1714377146318,154.78330338,9.999e-05,2]
[324859471,1714377168063,154.78330338,9.999e-05,2]
[324859472,1714377168200,154.78330338,9.999e-05,2]
[324859473,1714377169031,154.78330338,9.999e-05,2]
[324859474,1714377188691,19198.47309756,9.999e-05,2]
[324859475,1714377189670,409.22868854,9.999e-05,2]
[324859476,1714377203221,308.18047518,9.999e-05,2]
[324859477,1714377206778,6264.94228687,9.999e-05,2]
[324859482,1714377691581,200.0,0.00024441,120]
[324859484,1714377871509,200.0,0.00026582,120]
[324859486,1714377942138,-329.1948726,0.00011972,2]
[324859489,1714377991557,200.0,0.00025033,120]
[324859490,1714378035157,-300.0,0.0001197,2]
[324859491,1714378035178,-300.0,0.0001197,2]
[324859492,1714378035199,-2608.22034973,0.00011971,2]
[324859493,1714378038096,-2245.98339324,0.00011971,2]
[324859494,1714378041136,-10125.39506634,0.00011971,2]
[324859495,1714378041156,-7149.6701113,0.00011972,2]
[324859496,1714378041177,-247.69764059,0.00012327,2]
[324859497,1714378041197,-154.78330338,0.00012327,2]
[324859498,1714378041221,-1710.64343611,0.00012327,2]
[324859499,1714378041240,-4852.35306537,0.00012327,2]
[324859500,1714378041260,-24900.0,0.00012329,2]
[324859501,1714378041279,-309.34983401,0.00012596,2]
[324859502,1714378041300,-364.07994832,0.000129,2]
[324859503,1714378041320,-420.0,0.00013167,2]
[324859504,1714378041339,-919.41140399,0.00013596,2]
[324859505,1714378041359,-688.95828475,0.00013598,2]
[324859506,1714378041378,-1890.27292417,0.00013694,2]
[324859507,1714378041397,-155.35401592,0.00013696,2]
[324859508,1714378041417,-1200.92780998,0.00013696,2]
[324859509,1714378041437,-154.95443397,0.00013696,2]
[324859510,1714378041459,-156.00451118,0.00013696,2]
[324859511,1714378041479,-161.99116159,0.00013696,2]
[324859512,1714378041503,-154.82968734,0.00013696,2]
[324859513,1714378041523,-219.61097658,0.00013696,2]
[324859514,1714378041544,-166.51980397,0.00013696,2]
[324859515,1714378041564,-154.84515485,0.00013696,2]
[324859516,1714378041585,-156.68280648,0.00013696,2]
[324859517,1714378041604,-271.39928444,0.00013696,2]
[324859518,1714378041624,-435.51311724,0.00013696,2]
[324859519,1714378041643,-244.21761044,0.00013696,2]
[324859520,1714378041663,-884.2224895,0.00013696,2]
[324859521,1714378041682,-2011.81960285,0.00013696,2]
[324859522,1714378041701,-634.07387194,0.00013696,2]
[324859523,1714378041725,-474.97592894,0.00013696,2]
[324859524,1714378041745,-156.22497367,0.00013696,2]
[324859525,1714378041765,-215.38625227,0.00013696,2]
[324859526,1714378041784,-258.67140407,0.00013696,2]
[324859527,1714378041804,-551.91833095,0.00013696,2]
[324859528,1714378041824,-646.57238522,0.00013696,2]
[324859529,1714378041844,-306.64058106,0.00013696,2]
[324859530,1714378041864,-1311.22668928,0.00013696,2]
[324859531,1714378041883,-155.08589962,0.00013696,2]
[324859532,1714378041904,-648.10267264,0.00013696,2]
[324859533,1714378041924,-158.79873753,0.00013696,2]
[324859534,1714378041944,-323.00644432,0.00013696,2]
[324859535,1714378041966,-155.03576215,0.00013697,2]
[324859536,1714378041986,-722.99331126,0.00013697,2]
[324859537,1714378042005,-1255.16360998,0.00013697,2]
[324859538,1714378042026,-180.60362265,0.00013698,2]
[324859539,1714378042046,-168.59633581,0.00013698,2]
[324859540,1714378042066,-521.1072121,0.00013698,2]
[324859541,1714378042086,-504.89,0.00013698,2]
[324859542,1714378042105,-500.0,0.00013698,2]
[324859543,1714378042125,-500.0,0.00013698,2]
[324859544,1714378042144,-632.19,0.00013698,2]
[324859545,1714378042163,-513.37,0.00013698,2]
[324859546,1714378042182,-500.0,0.00013698,2]
[324859547,1714378042201,-500.0,0.00013698,2]
[324859548,1714378042224,-500.0,0.00013698,2]
[324859549,1714378042243,-500.0,0.00013698,2]
[324859550,1714378042263,-500.0,0.00013698,2]
[324859551,1714378042282,-500.0,0.00013698,2]
[324859552,1714378042302,-500.0,0.00013698,2]
[324859553,1714378042321,-500.0,0.00013698,2]
[324859554,1714378042340,-500.0,0.00013698,2]
[324859555,1714378042359,-578.17,0.00013698,2]
[324859556,1714378042379,-500.0,0.00013698,2]
[324859557,1714378042398,-500.0,0.00013698,2]
[324859558,1714378042417,-500.0,0.00013698,2]
[324859559,1714378042436,-319.88576632,0.00013698,2]
[324859560,1714378042456,-500.0,0.00013698,2]
[324859561,1714378042479,-500.0,0.00013698,2]
[324859562,1714378042502,-500.0,0.00013698,2]
[324859563,1714378042523,-500.0,0.00013698,2]
[324859564,1714378042543,-500.0,0.00013698,2]
[324859565,1714378042566,-500.0,0.00013698,2]
[324859566,1714378042586,-560.77,0.00013698,2]
[324859567,1714378042605,-500.0,0.00013698,2]
[324859568,1714378042625,-500.0,0.00013698,2]
[324859569,1714378042645,-500.0,0.00013698,2]
[324859570,1714378042667,-500.0,0.00013698,2]
[324859571,1714378042691,-500.0,0.00013698,2]
[324859572,1714378042714,-606.01796656,0.00013698,2]
[324859573,1714378042738,-500.0,0.00013698,2]
[324859574,1714378042758,-507.32802336,0.00013698,2]
[324859575,1714378042778,-500.0,0.00013698,2]
[324859576,1714378042798,-500.0,0.00013698,2]
[324859577,1714378042818,-500.0,0.00013698,2]
[324859578,1714378042837,-500.0,0.00013698,2]
[324859579,1714378042857,-500.0,0.00013698,2]
[324859580,1714378042876,-500.0,0.00013698,2]
[324859581,1714378042896,-500.0,0.00013698,2]
[324859582,1714378042916,-500.0,0.00013698,2]
[324859583,1714378042936,-500.0,0.00013698,2]
[324859584,1714378042957,-500.0,0.00013698,2]
[324859585,1714378042976,-500.0,0.00013698,2]
[324859586,1714378042996,-500.0,0.00013698,2]
[324859587,1714378043015,-593.39466437,0.00013698,2]
[324859588,1714378043035,-500.0,0.00013698,2]
[324859589,1714378043054,-500.0,0.00013698,2]
[324859590,1714378043073,-500.0,0.00013698,2]
[324859591,1714378043092,-475.27821245,0.00013698,2]
[324859592,1714378043111,-533.43,0.00013698,2]
[324859593,1714378043131,-500.0,0.00013698,2]
[324859594,1714378043151,-500.0,0.00013698,2]
[324859595,1714378043170,-500.0,0.00013698,2]
[324859596,1714378043189,-522.72,0.00013698,2]
[324859597,1714378043210,-500.0,0.00013698,2]
[324859598,1714378043230,-500.0,0.00013698,2]
[324859599,1714378043249,-500.0,0.00013698,2]
[324859600,1714378043268,-609.32,0.00013698,2]
[324859601,1714378043287,-500.0,0.00013698,2]
[324859602,1714378043306,-500.0,0.00013698,2]
[324859603,1714378043325,-500.0,0.00013698,2]
[324859604,1714378043344,-500.0,0.00013698,2]
[324859605,1714378043365,-500.0,0.00013698,2]
[324859606,1714378043383,-500.0,0.00013698,2]
[324859607,1714378043404,-500.0,0.00013698,2]
[324859608,1714378043424,-500.0,0.00013698,2]
[324859609,1714378043444,-500.0,0.00013698,2]
[324859610,1714378043465,-500.0,0.00013698,2]
[324859611,1714378043487,-500.0,0.00013698,2]
[324859612,1714378043507,-500.0,0.00013698,2]
[324859613,1714378043527,-500.0,0.00013698,2]
[324859614,1714378043548,-536.49,0.00013698,2]
[324859615,1714378043572,-500.0,0.00013698,2]
[324859616,1714378043591,-500.0,0.00013698,2]
[324859617,1714378043611,-500.0,0.00013698,2]
[324859618,1714378043631,-500.0,0.00013698,2]
[324859619,1714378043651,-500.0,0.00013698,2]
[324859620,1714378043670,-500.0,0.00013698,2]
[324859621,1714378043689,-500.0,0.00013698,2]
[324859622,1714378043710,-500.0,0.00013698,2]
[324859623,1714378043731,-500.0,0.00013698,2]
[324859624,1714378043752,-504.54,0.00013698,2]
[324859625,1714378043772,-500.0,0.00013698,2]
[324859626,1714378043793,-283.71767439,0.00013698,2]
[324859627,1714378043813,-500.0,0.00013698,2]
[324859628,1714378043834,-500.0,0.00013698,2]
[324859629,1714378043854,-528.86,0.00013698,2]
[324859630,1714378043973,-500.0,0.00013698,2]
[324859631,1714378043994,-500.0,0.00013698,2]
[324859632,1714378044014,-500.0,0.00013698,2]
[324859633,1714378044034,-500.0,0.00013698,2]
[324859634,1714378044053,-500.0,0.00013698,2]
[324859635,1714378044073,-500.0,0.00013698,2]
[324859636,1714378044093,-500.0,0.00013698,2]
[324859637,1714378044112,-500.0,0.00013698,2]
[324859638,1714378044131,-500.0,0.00013698,2]
[324859639,1714378044150,-500.0,0.00013698,2]
[324859640,1714378044169,-500.0,0.00013698,2]
[324859641,1714378044188,-500.0,0.00013698,2]
[324859642,1714378044210,-500.0,0.00013698,2]
[324859643,1714378044229,-500.0,0.00013698,2]
[324859644,1714378044249,-500.0,0.00013698,2]
[324859645,1714378044268,-500.0,0.00013698,2]
[324859646,1714378044287,-500.0,0.00013698,2]
[324859647,1714378044306,-500.0,0.00013698,2]
[324859648,1714378044325,-500.0,0.00013698,2]
[324859649,1714378044344,-547.61,0.00013698,2]
[324859650,1714378044363,-500.0,0.00013698,2]
[324859651,1714378044383,-500.0,0.00013698,2]
[324859652,1714378044402,-500.0,0.00013698,2]
[324859653,1714378044422,-500.0,0.00013698,2]
[324859654,1714378044441,-500.0,0.00013698,2]
[324859655,1714378044461,-577.24,0.00013698,2]
[324859656,1714378044482,-500.0,0.00013698,2]
[324859657,1714378044503,-500.0,0.00013698,2]
[324859658,1714378044523,-500.0,0.00013698,2]
[324859659,1714378044544,-889.2,0.00013698,2]
[324859660,1714378044565,-500.0,0.00013698,2]
[324859661,1714378044586,-500.0,0.00013698,2]
[324859662,1714378044606,-500.0,0.00013698,2]
[324859663,1714378044624,-529.61962128,0.00013698,2]
[324859664,1714378044644,-500.0,0.00013698,2]
[324859665,1714378044663,-500.0,0.00013698,2]
[324859666,1714378044683,-500.0,0.00013698,2]
[324859667,1714378044702,-500.0,0.00013698,2]
[324859668,1714378044722,-500.0,0.00013698,2]
[324859669,1714378044741,-500.0,0.00013698,2]
[324859670,1714378044761,-500.0,0.00013698,2]
[324859671,1714378044781,-500.0,0.00013698,2]
[324859672,1714378044800,-500.0,0.00013698,2]
[324859673,1714378044820,-500.0,0.00013698,2]
[324859674,1714378044839,-500.0,0.00013698,2]
[324859675,1714378044858,-195.30808301,0.00013698,2]
[324859676,1714378044879,-500.0,0.00013698,2]
[324859677,1714378044899,-500.0,0.00013698,2]
[324859678,1714378044918,-1251.678644,0.00013699,2]
[324859679,1714378044938,-166.666666,0.00013699,2]
[324859680,1714378044958,-154.78330338,0.000137,2]
[324859681,1714378044979,-730.61014924,0.000138,2]
[324859682,1714378044999,-540.93,0.00013972,2]
[324859683,1714378045019,-500.0,0.00013972,2]
[324859684,1714378045039,-500.0,0.00013972,2]
[324859685,1714378045059,-500.0,0.00013972,2]
[324859686,1714378045079,-222.86,0.00013972,2]
[324859687,1714378045099,-419.49,0.00013972,2]
[324859688,1714378045121,-500.0,0.00013972,2]
[324859689,1714378045141,-500.0,0.00013972,2]
[324859690,1714378045162,-534.04,0.00013972,2]
[324859691,1714378045181,-500.0,0.00013972,2]
[324859692,1714378045200,-500.0,0.00013972,2]
[324859693,1714378045221,-500.28,0.00013972,2]
[324859694,1714378045241,-362.32,0.00013972,2]
[324859695,1714378045260,-616.57631194,0.00013972,2]
[324859696,1714378045279,-500.0,0.00013972,2]
[324859697,1714378045298,-500.0,0.00013972,2]
[324859698,1714378045317,-500.0,0.00013972,2]
[324859699,1714378045336,-500.0,0.00013972,2]
[324859700,1714378045355,-151.4,0.00013972,2]
[324859701,1714378045374,-500.0,0.00013972,2]
[324859702,1714378045393,-500.0,0.00013972,2]
[324859703,1714378045414,-500.0,0.00013972,2]
[324859704,1714378045433,-151.0,0.00013972,2]
[324859705,1714378045453,-151.0,0.00013972,2]
[324859706,1714378045474,-500.0,0.00013972,2]
[324859707,1714378045498,-500.0,0.00013972,2]
[324859708,1714378045519,-151.0,0.00013972,2]
[324859709,1714378045539,-151.0,0.00013972,2]
[324859710,1714378045559,-500.0,0.00013972,2]
[324859711,1714378045581,-500.0,0.00013972,2]
[324859712,1714378045601,-151.0,0.00013972,2]
[324859713,1714378045620,-630.92,0.00013972,2]
[324859714,1714378045639,-151.0,0.00013972,2]
[324859715,1714378045660,-500.0,0.00013972,2]
[324859716,1714378045679,-151.0,0.00013972,2]
[324859717,1714378045699,-500.0,0.00013972,2]
[324859718,1714378045719,-500.0,0.00013972,2]
[324859719,1714378045740,-309.76797208,0.00013972,2]
[324859720,1714378045760,-500.0,0.00013972,2]
[324859721,1714378045780,-151.0,0.00013972,2]
[324859722,1714378045800,-500.0,0.00013972,2]
[324859723,1714378045819,-500.0,0.00013972,2]
[324859724,1714378045839,-500.0,0.00013972,2]
[324859725,1714378045860,-500.0,0.00013972,2]
[324859726,1714378045880,-500.0,0.00013972,2]
[324859727,1714378045901,-500.0,0.00013972,2]
[324859728,1714378045922,-500.0,0.00013972,2]
[324859729,1714378045942,-151.0,0.00013972,2]
[324859730,1714378045963,-577.24,0.00013972,2]
[324859731,1714378045982,-500.0,0.00013972,2]
[324859732,1714378046002,-502.56881253,0.00013972,2]
[324859733,1714378046027,-151.0,0.00013972,2]
[324859734,1714378046046,-500.0,0.00013972,2]
[324859735,1714378046066,-889.2,0.00013972,2]
[324859736,1714378046086,-500.0,0.00013972,2]
[324859737,1714378046106,-500.0,0.00013972,2]
[324859738,1714378046124,-151.0,0.00013972,2]
[324859739,1714378046143,-151.0,0.00013972,2]
[324859740,1714378046163,-500.0,0.00013972,2]
[324859741,1714378046184,-500.0,0.00013972,2]
[324859742,1714378046203,-500.0,0.00013972,2]
[324859743,1714378046224,-628.16,0.00013972,2]
[324859744,1714378046243,-500.0,0.00013972,2]
[324859745,1714378046262,-151.0,0.00013972,2]
[324859746,1714378046281,-500.0,0.00013972,2]
[324859747,1714378046301,-607.55,0.00013972,2]
[324859748,1714378046320,-501.76,0.00013972,2]
[324859749,1714378046339,-500.0,0.00013972,2]
[324859750,1714378046358,-500.0,0.00013972,2]
[324859751,1714378046378,-500.0,0.00013972,2]
[324859752,1714378046397,-500.0,0.00013972,2]
[324859753,1714378046417,-500.0,0.00013972,2]
[324859754,1714378046436,-928.56039633,0.00014,2]
[324859755,1714378046456,-500.0,0.00014246,2]
[324859756,1714378046476,-557.70643365,0.00014246,2]
[324859757,1714378046500,-500.0,0.00014246,2]
[324859758,1714378046520,-500.0,0.00014246,2]
[324859759,1714378046539,-255.07,0.00014246,2]
[324859760,1714378046558,-500.0,0.00014246,2]
[324859761,1714378046578,-597.07,0.00014246,2]
[324859762,1714378046597,-185.72,0.00014246,2]
[324859763,1714378046615,-378.15,0.00014246,2]
[324859764,1714378046635,-500.0,0.00014246,2]
[324859765,1714378046654,-468.62,0.00014246,2]
[324859766,1714378046674,-500.0,0.00014246,2]
[324859767,1714378046693,-500.0,0.00014246,2]
[324859768,1714378046714,-500.0,0.00014246,2]
[324859769,1714378046734,-500.0,0.00014246,2]
[324859770,1714378046915,-586.62,0.00014246,2]
[324859771,1714378046936,-528.97,0.00014246,2]
[324859772,1714378046956,-361.02,0.00014246,2]
[324859773,1714378046977,-577.24,0.00014246,2]
[324859774,1714378046998,-889.2,0.00014246,2]
[324859775,1714378047019,-508.11830582,0.00014246,2]
[324859776,1714378047040,-307.87982476,0.00014246,2]
[324859777,1714378047061,-500.0,0.00014246,2]
[324859778,1714378047081,-500.0,0.00014246,2]
[324859779,1714378047101,-151.0,0.00014246,2]
[324859780,1714378047121,-500.0,0.00014246,2]
[324859781,1714378047142,-500.0,0.00014246,2]
[324859782,1714378047163,-276.55313807,0.00014246,2]
[324859783,1714378047580,-469.96323,0.00013698,2]
[324859785,1714378051654,200.0,0.00025371,120]
[324859800,1714378232148,-300.0,0.00013697,2]
[324859801,1714378232158,-30.03677,0.00013698,2]
[324859802,1714378232168,-500.0,0.00013698,2]
[324859803,1714378232177,-500.0,0.00013698,2]
[324859804,1714378232187,-549.75,0.00013698,2]
[324859805,1714378232197,-500.0,0.00013698,2]
[324859806,1714378232206,-156.37,0.00013698,2]
[324859807,1714378232216,-500.0,0.00013698,2]
[324859808,1714378232226,-500.0,0.00013698,2]
[324859809,1714378232235,-500.0,0.00013698,2]
[324859810,1714378232245,-500.0,0.00013698,2]
[324859812,1714378232255,-500.0,0.00013698,2]
[324859813,1714378232264,-500.0,0.00013698,2]
[324859814,1714378232274,-500.0,0.00013698,2]
[324859815,1714378232283,-500.0,0.00013698,2]
[324859816,1714378232293,-394.87380458,0.00013698,2]
[324859817,1714378232302,-500.0,0.00013698,2]
[324859818,1714378232311,-500.0,0.00013698,2]
[324859819,1714378232321,-500.0,0.00013698,2]
[324859820,1714378232330,-500.0,0.00013698,2]
[324859821,1714378232339,-500.0,0.00013698,2]
[324859822,1714378232348,-406.11895496,0.00013698,2]
[324859823,1714378232358,-500.0,0.00013698,2]
[324859824,1714378232367,-500.0,0.00013698,2]
[324859825,1714378232376,-500.0,0.00013698,2]
[324859826,1714378232387,-500.0,0.00013698,2]
[324859827,1714378232396,-500.0,0.00013698,2]
[324859828,1714378232405,-500.90423701,0.00013698,2]
[324859829,1714378232414,-500.0,0.00013698,2]
[324859830,1714378232424,-500.0,0.00013698,2]
[324859831,1714378232433,-501.1423942,0.00013698,2]
[324859832,1714378232442,-500.0,0.00013698,2]
[324859833,1714378232451,-500.0,0.00013698,2]
[324859834,1714378232460,-500.0,0.00013698,2]
[324859835,1714378232470,-509.01363689,0.00013698,2]
[324859836,1714378232479,-500.0,0.00013698,2]
[324859837,1714378232489,-778.05,0.00013698,2]
[324859838,1714378232498,-500.0,0.00013698,2]
[324859839,1714378232509,-500.0,0.00013698,2]
[324859840,1714378232519,-559.4,0.00013698,2]
[324859841,1714378232530,-375.85116075,0.00013698,2]
[324859842,1714378232539,-500.0,0.00013698,2]
[324859843,1714378232548,-500.0,0.00013698,2]
[324859844,1714378232558,-500.0,0.00013698,2]
[324859845,1714378232568,-500.0,0.00013698,2]
[324859846,1714378232577,-500.0,0.00013698,2]
[324859847,1714378232587,-500.0,0.00013698,2]
[324859848,1714378232596,-500.0,0.00013698,2]
[324859849,1714378232607,-500.0,0.00013698,2]
[324859850,1714378232616,-500.0,0.00013698,2]
[324859851,1714378232626,-500.0,0.00013698,2]
[324859852,1714378232636,-500.0,0.00013698,2]
[324859853,1714378232646,-151.0,0.00013699,2]
[324859854,1714378232655,-625.839322,0.00013699,2]
[324859855,1714378232664,-151.0,0.00013972,2]
[324859856,1714378232673,-151.0,0.00013972,2]
[324859857,1714378232682,-500.0,0.00013972,2]
[324859858,1714378232691,-555.55,0.00013972,2]
[324859859,1714378232700,-500.0,0.00013972,2]
[324859860,1714378232710,-500.0,0.00013972,2]
[324859861,1714378232719,-500.0,0.00013972,2]
[324859862,1714378232729,-778.05,0.00013972,2]
[324859863,1714378232739,-500.0,0.00013972,2]
[324859864,1714378232748,-500.0,0.00013972,2]
[324859865,1714378232757,-500.0,0.00013972,2]
[324859866,1714378232766,-500.0,0.00013972,2]
[324859867,1714378232776,-928.56039633,0.00014,2]
[324859868,1714378232785,-223.44686193,0.00014246,2]
[324859869,1714378232794,-151.0,0.00014246,2]
[324859870,1714378232803,-178.182548,0.00014246,2]
[324859871,1714378232813,-500.0,0.00014246,2]
[324859872,1714378232823,-500.0,0.00014246,2]
[324859873,1714378232832,-500.0,0.00014246,2]
[324859874,1714378232841,-778.05,0.00014246,2]
[324859875,1714378232850,-500.0,0.00014246,2]
[324859876,1714378232859,-500.0,0.00014246,2]
[324859877,1714378232868,-336.14,0.00014246,2]
[324859878,1714378232877,-730.61014924,0.00014498,2]
[324859879,1714378232888,-688.95828471,0.00014499,2]
[324859880,1714378232897,-167.443342,0.00014499,2]
[324859881,1714378232906,-151.0,0.00014499,2]
[324859882,1714378232916,-151.0,0.00014499,2]
[324859883,1714378232926,-151.0,0.00014499,2]
[324859884,1714378232935,-5000.0,0.000145,2]
[324859885,1714378232945,-151.0,0.000145,2]
[324859886,1714378232954,-151.0,0.000145,2]
[324859887,1714378232964,-1547.6544079,0.00014519,2]